Cogmind - Beta 16.1 @@@ ROGUE MODE // 2026.04.17 @ 08:41:46 Player: LegionOfLizards Result: Destroyed by ZF-Q7Q(R) with Subdweller Machine Gun Performance ------------- Evolutions (0) 0 Regions Visited (2) 400 Robots Destroyed (35) 175 Value Destroyed (569) 569 Prototype IDs (0) 0 Alien Tech Used (0) 0 Bonus (0) 0 TOTAL SCORE: 1144 Bonus ------- None Cogmind --------- Core Integrity 0/250 Matter 300/300 Energy 234/250 System Corruption 0% Temperature Cool (36) Movement Walking (120) Location -10/Subcaves Parts ------- > --- POWER (1) -------- Ion Engine > --- PROPULSION (2) --- Carbon-fiber Leg Myomer Leg > --- UTILITY (2) ------ Large Storage Unit Subdweller Optics > --- WEAPON (2) ------- Beamcaster Beamcaster > --- INVENTORY (15) --- Carbon-fiber Leg Improved Heat Sink Improved Heat Sink High-capacity Matter Pod (200) Weight Redist. System Transport Network Coupler Targeting Computer Targeting Computer Scrap Shield Light Cannon Light Cannon Grenade Launcher Scrap Shield Fragment (45) Peak State ------------ > --- POWER ------------ Ion Engine > --- PROPULSION ------- Carbon-fiber Leg Myomer Leg > --- UTILITY ---------- Large Storage Unit Subdweller Optics > --- WEAPON ----------- Beamcaster Beamcaster > --- INVENTORY -------- Carbon-fiber Leg Improved Heat Sink High-capacity Matter Pod Weight Redist. System Improved Terrain Scanner Transport Network Coupler Targeting Computer Scrap Shield Light Cannon Light Cannon Grenade Launcher Scrap Shield Fragment [Rating: 26] Favorites ----------- Power Ion Engine Engine Ion Engine Propulsion Light Treads Treads Light Treads Leg Myomer Leg Utility Propulsion Shielding Device Improved Terrain Scanner Storage Large Storage Unit Protection Propulsion Shielding Weapon Beam Cannon Energy Gun EM Pulse Gun Energy Cannon Beam Cannon Ballistic Gun Autogun Launcher Grenade Launcher Build | -11 -10 -10 ------- Run | Yrd Mat Sub Slots Evolved . | . . . Power . | . . . Propulsion . | . . . Utility . | . . . Weapon . | . . . Parts Attached 26 | 8 9 9 Power 3 | 1 1 1 Engine 3 | 1 1 1 Core . | . . . Reactor . | . . . Propulsion 5 | 2 1 2 Treads 3 | 2 1 . Leg 2 | . . 2 Wheel . | . . . Hover . | . . . Flight . | . . . Utility 8 | 2 5 1 Device 2 | 1 . 1 Storage 4 | 1 3 . Processor . | . . . Hackware . | . . . Protection 2 | . 2 . Artifact . | . . . Weapon 10 | 3 2 5 Energy Gun 4 | 2 . 2 Energy Cannon 1 | . 1 . Ballistic Gun 4 | 1 1 2 Ballistic Cannon . | . . . Launcher 1 | . . 1 Special Weapon . | . . . Impact Weapon . | . . . Slashing Weapon . | . . . Piercing Weapon . | . . . Special Melee Weapon . | . . . Unidentified Prototypes . | . . . Parts Lost 8 | . . 8 Power 1 | . . 1 Propulsion 2 | . . 2 Utility 2 | . . 2 Weapon 3 | . . 3 Highest Loss Streak 7 | . . 7 To Critical Strikes . | . . . Average Backups 10 | 1 10 11 Power . | . . . Propulsion . | . . . Utility 5 | . 5 6 Weapon 4 | 1 4 4 Tool/Special . | . . . Unused Backups 14 | . 1 13 Power 1 | . 1 . Propulsion 1 | . . 1 Utility 8 | . . 8 Weapon 4 | . . 4 Tool/Special . | . . . Average Slot Usage (%) 93 | . 99 79 Engine 12 | . 13 8 Treads 22 | . 27 9 Leg 2 | . . 8 Device 4 | . 3 7 Storage 14 | . 14 14 Protection 9 | . 10 4 Energy Gun 4 | . 3 6 Energy Cannon 9 | . 10 5 Ballistic Gun 14 | . 14 14 Peak Build Rating 26 | 9 10 26 Average Rating 9 | 5 8 13 On Entrance 6 | . 9 10 Avg Prop Armor Cover (%) . | . . . Naked Turns . | . . . Heaviest Build 37 | 15 32 37 Greatest Support 40 | 40 40 40 Greatest Overweight (x) 9 | . 1 9 Average Overweight (x) . | . . 1 Largest Inventory Capacity 15 | 8 15 15 Average Capacity 11 | 6 11 15 Most Carried 15 | 5 15 15 Average Carried 10 | 1 10 13 Final Capacity 15 | 8 15 15 Final Carried 15 | 1 15 14 Class Distribution -------------------- 91% | Mutant 8% | Scavenger-Mutant Dominant Class ---------------- Mutant | -10/Materials Mutant | -10/Subcaves Resources | -11 -10 -10 ----------- Run | Yrd Mat Sub Matter Collected 964 | 295 495 174 Remotely . | . . . Salvage Created 991 | 134 717 140 Parts 77 | 9 60 8 Haulers Intercepted 1 | . 1 . Recyclers Shooed . | . . . Parts Field Recycled . | . . . Retrieved Matter . | . . . Parts Self-Destructed . | . . . Prevented . | . . . Parts Restored . | . . . Kills | -11 -10 -10 ------- Run | Yrd Mat Sub Combat Hostiles Destroyed 18 | . 14 4 Guns 12 | . 9 3 Cannons 3 | . 3 . AOE 3 | . 2 1 Classes Destroyed 10 | 3 6 1 Worker 5 | 1 4 . Builder 3 | . 3 . Tunneler 2 | 2 . . Hauler 1 | . 1 . Recycler 2 | 1 1 . Operator 1 | . 1 . Watcher 3 | . 3 . Swarmer 8 | . 8 . Grunt 6 | . 6 . Subdweller 4 | . . 4 Best Kill Streak 7 | 3 7 4 Combat Bots Only 4 | . 3 4 Max Kills in Single Turn 3 | 1 3 1 Gunslinging . | . . . Exploded 2 | . 2 1 Melee . | . . . Uniques/NPCs Destroyed . | . . . Combat | -11 -10 -10 -------- Run | Yrd Mat Sub Hostile Shots Fired 125 | . 62 63 Missed 34 | . 19 15 Hits 91 | . 43 48 Projectile 91 | . 43 48 Critical Strikes 3 | . . 3 Damage Taken 1536 | 34 401 1101 Core 272 | . 55 217 Absorbed by Shields . | . . . Redirected to Shielding 109 | . 28 81 Regen/Repaired (Parts) 84 | . 84 . Core Remaining (%) 100 | 100 . . Volleys Fired 74 | 7 51 16 Largest 2 | 2 2 2 Hottest 150 | 60 83 150 Shots Fired 146 | 14 102 30 Gun 110 | 14 74 22 Cannon 34 | . 28 6 Launcher 2 | . . 2 Special . | . . . Kinetic 78 | 7 51 20 Thermal 36 | . 28 8 Explosive 2 | . . 2 Electromagnetic 30 | 7 23 . Robot Hit Streak 11 | 6 7 11 Robot Miss Streak 4 | 1 4 2 Penetration Max . | . . . Secondary Targets . | . . . Shots Hit Robots 82 | 11 49 22 Core Hits 42 | 5 28 9 Critical Kills . | . . . Critical Parts Destroyed . | . . . Critical Strikes . | . . . Melee Attacks . | . . . Impact . | . . . Slashing . | . . . Piercing . | . . . Sneak Attacks . | . . . Combat Hostiles . | . . . Follow-up Attacks . | . . . Damage Inflicted 1601 | 191 849 561 Guns 933 | 151 492 290 Cannons 333 | . 263 70 Explosions 335 | 40 94 201 Melee . | . . . Ramming . | . . . Kinetic 676 | 68 359 249 Thermal 508 | 40 357 111 Explosive 201 | . . 201 Electromagnetic 216 | 83 133 . Impact . | . . . Slashing . | . . . Piercing . | . . . Highest Corruption . | . . . Average Corruption . | . . . Corruption Purged . | . . . Corruption Blocked . | . . . Overload Shots . | . . . Overflow Damage 8 | . . 8 Projectiles . | . . . Explosions 8 | . . 8 Melee . | . . . Knockbacks . | . . . Impact . | . . . Kinetic . | . . . Secondary . | . . . Self-Inflicted Damage 57 | 35 . 22 Shots 2 | 1 . 1 Rammed . | . . . Targets Rammed . | . . . Kicked . | . . . Crushed . | . . . Highest Temperature 247 | 12 160 247 Average Temperature 43 | 12 39 83 Received Heat Transfer 584 | . 93 491 Siege Activations . | . . . Martial Activations . | . . . Shielding Activations . | . . . Robots Disrupted . | . . . Combat Hostiles . | . . . Robots Corrupted . | . . . Combat Hostiles . | . . . Parts Fried 2 | 1 1 . Impact Corruptions . | . . . Robots Melted . | . . . Combat Hostiles . | . . . Parts Melted 1 | . 1 . Heat Transferred 977 | 50 705 222 Parts Sabotaged . | . . . Parts Stolen . | . . . Parts Stripped . | . . . Power Chain Reactions 2 | 1 1 . Alert | -11 -10 -10 ------- Run | Yrd Mat Sub Maximum Alert Level . | . . . Low Security (%) 100 | 100 100 . Level 1 . | . . . Level 2 . | . . . Level 3 . | . . . Level 4 . | . . . Level 5 . | . . . High Security . | . . . Max Security . | . . . Peak Influence 123 | 15 123 . Initial 3 | . 3 . Average 33 | 2 35 . Influence Increases 458 | 20 438 . Destroy 0b10 Robot/C 280 | . 280 . Destroy 0b10 Robot/NC 85 | 20 65 . Destroy Leader 68 | . 68 . Successful Hack 23 | . 23 . Destroy Structure 2 | . 2 . Influence Decreases 458 | 15 371 72 Entered New Map 38 | . 2 36 Time Decay 420 | 15 369 36 Squads Dispatched 2 | . 2 . Investigation 2 | . 2 . Extermination . | . . . Reinforcement . | . . . Assault . | . . . Garrison . | . . . Intercept . | . . . Searches Triggered . | . . . Construction Impeded . | . . . Haulers Reinforced . | . . . Active Scanning Responses . | . . . Cargo Convoy Interrupts . | . . . Stealth | -11 -10 -10 --------- Run | Yrd Mat Sub Distress Signals 1 | . 1 . Communications Jammed . | . . . Distress Signals . | . . . Times Spotted 29 | . 22 7 Peak Tracking Total 5 | . 5 5 Tactical Retreats . | . . . Traps | -11 -10 -10 ------- Run | Yrd Mat Sub Traps Triggered 1 | . 1 . Indirectly . | . . . Trap Hack Attempts . | . . . Triggered . | . . . Disarmed . | . . . Reprogrammed . | . . . Reused . | . . . Traps Extracted . | . . . Installed . | . . . Triggered . | . . . Machines | -11 -10 -10 ---------- Run | Yrd Mat Sub Machines Disabled . | . . . Max in Single Turn . | . . . Machines Repaired . | . . . Machines Dismantled . | . . . Machines Sabotaged . | . . . Overloaded Fab Kills . | . . . Hacking | -11 -10 -10 --------- Run | Yrd Mat Sub Machines Accessed 9 | . 9 . Terminals 6 | . 6 . Fabricators . | . . . Repair Stations 1 | . 1 . Recycling Units 2 | . 2 . Scanalyzers . | . . . Garrison Access . | . . . Total Hacks 17 | . 17 . Successful 10 | . 10 . Failed 7 | . 7 . Catastrophic 1 | . 1 . Database Lockouts . | . . . Manual 9 | . 9 . Terminals 9 | . 9 . Fabricators . | . . . Repair Stations 5 | . 5 . Recycling Units 3 | . 3 . Scanalyzers . | . . . Garrison Access . | . . . Terminal Hacks 2 | . 2 . Zone Layout 2 | . 2 . Fabricator Hacks . | . . . Repair Station Hacks 5 | . 5 . Scan Component 2 | . 2 . Repair 2 | . 2 . Refit 1 | . 1 . Recycling Unit Hacks 3 | . 3 . Recycle Component 1 | . 1 . Process 1 | . 1 . Report Inventory 1 | . 1 . Scanalyzer . | . . . Garrison Access Hacks . | . . . Unauthorized Hacks . | . . . Terminals . | . . . Fabricators . | . . . Repair Stations . | . . . Recycling Units . | . . . Scanalyzers . | . . . Garrison Access . | . . . Data Cores Recovered . | . . . Used . | . . . Hacking Detections 6 | . 6 . Full Trace Events 1 | . 1 . Feedback Events . | . . . Feedback Blocked . | . . . Robot Schematics Acquired . | . . . Robots Built . | . . . Authchips . | . . . Time . | . . . Total Robot Build Rating . | . . . Part Schematics Acquired . | . . . Parts Built . | . . . Authchips . | . . . Time . | . . . Total Part Build Rating . | . . . Part Studies Acquired . | . . . Parts Repaired 2 | . 2 . Time 52 | . 52 . Parts Recycled 1 | . 1 . Recycled Matter 145 | . 145 . Retrieved Matter . | . . . Retrieved Components . | . . . Parts Scanalyzed . | . . . Part Schematics Acquired . | . . . Parts Damaged . | . . . Bothacking | -11 -10 -10 ------------ Run | Yrd Mat Sub Used RIF Installer . | . . . Robots Hacked . | . . . Non-combat . | . . . Combat . | . . . Robot Hacks Applied . | . . . Relay Couplers Released . | . . . Fabnet Peak Effective % . | . . . Robots Rewired . | . . . Allies Hacked . | . . . Hacks Repelled . | . . . Allies | -11 -10 -10 -------- Run | Yrd Mat Sub Total Allies . | . . . Largest Group . | . . . Highest-Rated Group . | . . . Highest-Rated Ally . | . . . Total Orders . | . . . Ally Attacks . | . . . Total Damage . | . . . Kills . | . . . Allies Corrupted . | . . . Allies Melted . | . . . Intel | -11 -10 -10 ------- Run | Yrd Mat Sub Active Infowar (turns) 509 | 16 258 235 Optics 235 | . . 235 Terrain 274 | 16 258 . Robot Analysis Total . | . . . Derelict Logs Recovered 1 | . . 1 Drone Launches . | . . . Drone Recoveries . | . . . Exploration | -11 -10 -10 ------------- Run | Yrd Mat Sub Turns Passed 1839 | 114 1216 509 Spaces Moved 883 | 49 619 215 Core 30 | 2 . 28 Treads 769 | 47 619 103 Legs 84 | . . 84 Wheels . | . . . Hover . | . . . Flight . | . . . Fastest Speed 50 | 50 160 120 Average Speed 168 | 155 161 190 Slowest Speed 500 | 160 240 500 Overloaded Moves . | . . . Propulsion Burnouts . | . . . Robots Hopped . | . . . Potential Cave-ins . | . . . Cave-ins Triggered . | . . . Exploration Rate (%) 34 | 4 88 10 Regions Visited 2 Branch Regions 1 Pre-discovered Areas 1 | . . 1 Known Exits Taken . | . . . Unknown Exits Taken 2 | 1 1 . Scrap Searched 1 | . . 1 Spaces Dug . | . . . Terrain Destroyed 17 | 1 1 15 Melee . | . . . Projectile . | . . . AOE 17 | 1 1 15 Terrain Rammed . | . . . Walls Destroyed . | . . . Machines Disabled . | . . . Actions | -11 -10 -10 --------- Run | Yrd Mat Sub Total 1098 | 72 736 290 Wait 58 | 1 24 33 Move 881 | 48 618 215 Hop . | . . . Pick Up 40 | 8 21 11 Fast Attach 2 | . 2 . Attach 19 | 7 2 10 Detach 1 | . 1 . Swap 10 | 1 9 . Drop 13 | . 8 5 Fire 74 | 7 51 16 Melee . | . . . Ram . | . . . Kick . | . . . Crush . | . . . Escape Stasis . | . . . Rewire . | . . . Trap . | . . . Miscellaneous . | . . . Route ------- -11/Scrapyard -10/Materials (discovered 4 exits: [*Mat] / [*Min x2] / [*Sub]) -10/Subcaves History --------- Turn | Location | Event 12 | -11/Scrapyard | Discovered new exit (range 15) 115 | -11/Scrapyard | Entered Materials 301 | -10/Materials | Build established: Mutant 489 | -10/Materials | Discovered new exit (range 4) 525 | -10/Materials | Discovered new exit (range 8) 567 | -10/Materials | Discovered new exit (range 16) 1174 | -10/Materials | Discovered new exit (range 4) 1182 | -10/Materials | Repaired Ion Engine 1208 | -10/Materials | Repaired Lgt. Treads? 1331 | -10/Materials | Entered Subcaves 1418 | -10/Subcaves | Ambushed by swarm of Subdwellers 1486 | -10/Subcaves | Lost 4 allies 1499 | -10/Subcaves | Core integrity fell below 50% 1537 | -10/Subcaves | Core integrity fell below 20% 1559 | -10/Subcaves | Lost 7 parts (1p2n1u3w) 1840 | -10/Subcaves | Destroyed by ZF-Q7Q(R) with Subdweller Machine Gun Last Messages --------------- Acquired Carbon-fiber Leg. Acquired 20 matter. Acquired Imp. Heat Sink. Acquired Beamcaster. Dropped Autogun. Acquired 20 matter. Subatomizers dissect the Disposable Heat Sink, destroying it. Subatomizers dissect the Sub. Machine Gun. Acquired Beamcaster. Acquired Imp. Heat Sink. Acquired 10 matter. Dropped Imp. Terrain Scanner. Acquired Targeting Computer. Subatomizers dissect the Sub. Machine Gun. Acquired derelict log, extracted data. World map updated: -9/Materials. Searching scrap... Found Battle Cannon. Found 51 Matter. Map ----- +----------------------------------------------------+ | ??????????????#" ##????### ##????? | | ??????????????## ###### ###??? | | ??????????????# % ##! "#??? | | ??????????????# % %= %! #######??? | | ??????????????# [% %!%[% ""###????????? | | ??????????????## [ %##%* ""#??????????? | | ???????????????## ### %###??????????? | | ????????????????# #?# #????????????? | | ????????????????# ### ##????????????? | | ????????????????## ## ##?????????????? | | ?????????????????# ###???##?????????? | | ?????????????????# #???## #?????????? | | ?????????????????# ##### #?????????? | | ???????????##????## #?????????? | | ???????????$<#???# #?????????? | | ???????????#